{"text_format":"1","workbook":"xlsx","n_sheets":4,"sheets":["البيانات الاساسية","SH1","SH3","جدول EMIS"],"not_rendered":{"charts":0,"images":1,"macros":1,"external_links":0,"defined_names":29,"comments":0,"pivot_tables":0},"unopened":[],"bounds":{"document_bytes":16777216,"sheet_cells":100000,"rows_first":2000,"rows_last":500,"rows_between":2000,"halvings":0,"cell_chars":16384,"cell_head_chars":4096},"cells_cut":0,"cells_raw":0,"read":"whole","date_system":"1900"}

{"sheet":"البيانات الاساسية","index":0,"n_rows":102,"n_cols":34,"rows_kept":102,"cut":false,"hidden":false,"merged":[[20,1,20,5],[21,1,21,5],[16,1,16,5],[17,1,17,5],[18,1,18,5],[19,1,19,5]]}
["العام الدراسي","مديرية التربية","البلدة","اللواء","اسم المدرسة","عنوانها","السلطة التعليمية المشرفة","رقم هاتف المدرسة","الرقم الوطني للمدرسة","اسم مدير المدرسة","اسم مربي الصف","الصف","الشعبة","عدد طلاب الصف","الرقم الوطني","الديانة"]
["2020/2020","ماركا","المنارة","ماركا","محمد الشنقيطي الاساسية للبنين","المنارة","وزارة التربية والتعليم",3614615,123456,"فخري العواد","ثائر صابر احمد علي","الثالث","أ",20,9841056210,"مسلم"]
[null,null,null,null,null,null,null,null,null,null,null,null,null,null,3614615,"مسلم",null,null,null,null,null,null,null,null,null,null,"الأول","أ","الصف والشعبة",null,{"$f":"L2&\"   \"&M2","v":"الثالث   أ"},null,null,"الاحد"]
[null,null,null,null,null,null,null,null,null,null,null,null,null,null,null,null,null,null,null,null,null,null,null,null,null,null,"الثاني","ب",null,null,null,null,null,"الاثنين"]
["الاكمال","يوم","تاريخ","يوم","تاريخ",null,null,null,null,null,null,null,null,null,null,null,null,null,null,null,null,null,null,null,null,null,"الثالث","ج","مسلم",null,null,null,null,"الثلاثاء"]
[null,"الاحد","2020-12-12","الاثنين","2020-12-12",null,null,null,null,null,null,null,null,null,null,null,null,null,null,null,null,null,null,null,null,null,"الرابع","د","مسيحي",null,null,null,null,"الأربعاء"]
[null,null,null,null,null,null,null,null,null,null,null,null,null,null,null,null,null,null,null,null,null,null,null,null,null,null,"الخامس","هـ",null,null,null,null,null,"الخميس"]
["تسليم الكتب","يوم","تاريخ","يوم","تاريخ",null,null,null,null,null,null,null,null,null,null,null,null,null,null,null,null,null,null,null,null,null,"السادس","و",null,null,null,null,null,"الجمعة"]
[null,"الثلاثاء","2020-12-12","الخميس",null,null,null,null,null,null,null,null,null,null,null,null,null,null,null,null,null,null,null,null,null,null,"السابع","ز",null,null,null,null,null,"السبت"]
["بداية التدرس","العام الدراسي","يوم","تاريخ",null,null,null,null,null,null,null,null,null,null,null,null,null,null,null,null,null,null,null,null,null,null,"الثامن","ح"]
[null,"2020/2021","الاحد","2021-02-09",null,null,null,null,null,null,null,null,null,null,null,null,null,null,null,null,null,null,null,null,null,null,"التاسع","ط"]
["أيام الدوام الرسمي","عدد",null,null,null,null,null,null,null,null,null,null,null,null,null,null,null,null,null,null,null,null,null,null,null,null,"العاشر","ك"]
[null,198]
[]
[]
[]
[90,"ممتاز ، مبارك لك هذا النجاح والتفوق الباهر"]
[80,"جيد جداً ، مبارك لك النجاح بإمكانك الوصول للتميز"]
[70,"جيد ، مبارك لك النجاح ، بالمثابرة والاجتهاد يمكن التقدم أكثر"]
[60,"متوسط ، مبارك لك النجاح ، لكن بحاجة للمتابعة والعناية والاهتمام لتحسين المستوى"]
[50,"مقبول ، مبارك لك النجاح ، بحاجة للكثير من الاهتمام ومتابعة الدروس للتقدم"]
[0,"مقصر ، أمامك فرص أخرى لتعديل النتيجة من خلال المثابرة والجد والاجتهاد المستمر"]
[]
[]
[]
[]
[]
[]
[]
[]
[]
[]
[]
[]
[]
[]
[]
[]
[]
[]
[]
[]
[]
[]
[]
[]
[]
[]
[]
[]
[]
[]
[]
[]
[]
[]
[]
[]
[]
[]
[]
[]
[{"$f":"CONCATENATE('جدول EMIS'!B147)","v":""}]
[]
[{"$f":"CONCATENATE('جدول EMIS'!B149)","v":""}]
[]
[{"$f":"CONCATENATE('جدول EMIS'!B151)","v":""}]
[]
[{"$f":"CONCATENATE('جدول EMIS'!B153)","v":""}]
[{"$f":"CONCATENATE('جدول EMIS'!B154)","v":""}]
[{"$f":"CONCATENATE('جدول EMIS'!B155)","v":""}]
[{"$f":"CONCATENATE('جدول EMIS'!B156)","v":""}]
[{"$f":"CONCATENATE('جدول EMIS'!B157)","v":""}]
[{"$f":"CONCATENATE('جدول EMIS'!B158)","v":""}]
[{"$f":"CONCATENATE('جدول EMIS'!B159)","v":""}]
[{"$f":"CONCATENATE('جدول EMIS'!B160)","v":""}]
[{"$f":"CONCATENATE('جدول EMIS'!B161)","v":""}]
[{"$f":"CONCATENATE('جدول EMIS'!B162)","v":""}]
[{"$f":"CONCATENATE('جدول EMIS'!B163)","v":""}]
[{"$f":"CONCATENATE('جدول EMIS'!B164)","v":""}]
[{"$f":"CONCATENATE('جدول EMIS'!B165)","v":""}]
[{"$f":"CONCATENATE('جدول EMIS'!B166)","v":""}]
[{"$f":"CONCATENATE('جدول EMIS'!B167)","v":""}]
[{"$f":"CONCATENATE('جدول EMIS'!B168)","v":""}]
[{"$f":"CONCATENATE('جدول EMIS'!B169)","v":""}]
[{"$f":"CONCATENATE('جدول EMIS'!B170)","v":""}]
[{"$f":"CONCATENATE('جدول EMIS'!B171)","v":""}]
[{"$f":"CONCATENATE('جدول EMIS'!B172)","v":""}]
[{"$f":"CONCATENATE('جدول EMIS'!B173)","v":""}]
[{"$f":"CONCATENATE('جدول EMIS'!B174)","v":""}]
[{"$f":"CONCATENATE('جدول EMIS'!B175)","v":""}]
[{"$f":"CONCATENATE('جدول EMIS'!B176)","v":""}]
[{"$f":"CONCATENATE('جدول EMIS'!B177)","v":""}]
[{"$f":"CONCATENATE('جدول EMIS'!B178)","v":""}]
[{"$f":"CONCATENATE('جدول EMIS'!B179)","v":""}]
[{"$f":"CONCATENATE('جدول EMIS'!B180)","v":""}]
[{"$f":"CONCATENATE('جدول EMIS'!B181)","v":""}]
[{"$f":"CONCATENATE('جدول EMIS'!B182)","v":""}]
[{"$f":"CONCATENATE('جدول EMIS'!B183)","v":""}]
[{"$f":"CONCATENATE('جدول EMIS'!B184)","v":""}]
[{"$f":"CONCATENATE('جدول EMIS'!B185)","v":""}]
[{"$f":"CONCATENATE('جدول EMIS'!B186)","v":""}]

{"sheet":"SH1","index":1,"n_rows":52,"n_cols":8,"rows_kept":52,"cut":false,"hidden":false,"merged":[[45,4,45,6],[46,2,48,8],[7,0,8,6],[7,7,8,8],[14,0,17,3],[14,4,15,5],[14,6,15,9],[16,6,17,6],[16,7,17,9],[24,0,25,3],[26,0,27,3],[28,0,29,3],[30,0,31,3],[32,0,33,3],[34,0,35,3],[36,0,37,3],[5,2,6,2],[5,3,6,7],[18,0,19,3],[20,0,21,3],[22,0,23,3],[18,4,19,4],[18,5,19,5],[20,4,21,4],[20,5,21,5],[22,4,23,4],[22,5,23,5],[18,6,19,6],[20,6,21,6],[22,6,23,6],[10,0,10,1],[11,0,11,1],[24,4,25,4],[24,5,25,5],[26,4,27,4],[26,5,27,5],[28,4,29,4],[28,5,29,5],[38,5,39,5],[40,5,41,5],[30,5,31,5],[32,4,33,4],[32,5,33,5],[34,4,35,4],[34,5,35,5],[30,4,31,4],[51,7,51,9],[51,0,51,2],[38,0,39,3],[40,0,41,3],[42,0,43,3],[45,0,45,1],[46,0,48,1],[38,7,39,9],[40,7,41,9],[42,7,43,9],[42,4,43,4],[42,5,43,5],[38,6,39,6],[40,6,41,6],[42,6,43,6],[40,4,41,4],[50,0,50,2],[50,7,50,9],[50,4,50,5],[28,7,29,9],[30,7,31,9],[32,7,33,9],[34,7,35,9],[36,7,37,9],[28,6,29,6],[30,6,31,6],[32,6,33,6],[34,6,35,6],[36,6,37,6],[36,4,37,4],[36,5,37,5],[38,4,39,4],[24,6,25,6],[26,6,27,6],[18,7,19,9],[20,7,21,9],[22,7,23,9],[24,7,25,9],[26,7,27,9]]}
[]
["المملكة الأردنية الهاشمية"]
["وزارة التربية والتعليم"]
["مديرية التربية والتعليم",null,{"$f":"CONCATENATE('البيانات الاساسية'!B2)","v":"ماركا"}]
[]
[null,null,"مدرسة",{"$f":"CONCATENATE('البيانات الاساسية'!E2)","v":"محمد الشنقيطي الاساسية للبنين"}]
[]
["النتيجة المدرسية للفصل الدراسي الأول لعام",null,null,null,null,null,null,{"$f":"CONCATENATE('البيانات الاساسية'!A2)","v":"2020/2020"}]
[]
[]
[" اسم الطالب :"]
["الصف والشعبة:",null,{"$f":"CONCATENATE('البيانات الاساسية'!AE3)","v":"الثالث   أ"},null,null,"الجنسية:"]
["                  تاريخ ومكان الولادة:"]
[]
["المبحث",null,null,null,"النهايات",null,"العلامة"]
[]
[null,null,null,null,"النهاية","النهاية","بالأرقام","بالكلمات"]
[null,null,null,null,"العظمى","الصغرى"]
["التربية الإسلامية",null,null,null,null,null,null,{"$f":"NoToTxt(G19,\"علامة\",\" \")","v":"  "}]
[]
["اللغة العربية",null,null,null,null,null,null,{"$f":"NoToTxt(G21,\"علامة\",\" \")","v":"  "}]
[]
["اللغة الإنجليزية",null,null,null,null,null,null,{"$f":"NoToTxt(G23,\"علامة\",\" \")","v":"  "}]
[]
["الرياضيات",null,null,null,null,null,null,{"$f":"NoToTxt(G25,\"علامة\",\" \")","v":"  "}]
[]
["التربية الاجتماعية والوطنية",null,null,null,null,null,null,{"$f":"NoToTxt(G27,\"علامة\",\" \")","v":"  "}]
[]
["العلوم",null,null,null,null,null,null,{"$f":"NoToTxt(G29,\"علامة\",\" \")","v":"  "}]
[]
["التربية الفنية - الموسيقى والأناشيد",null,null,null,null,null,null,{"$f":"NoToTxt(G31,\"علامة\",\" \")","v":"  "}]
[]
["التربية الرياضية",null,null,null,null,null,null,{"$f":"NoToTxt(G33,\"علامة\",\" \")","v":"  "}]
[]
["التربية المهنية",null,null,null,null,null,null,{"$f":"NoToTxt(G35,\"علامة\",\" \")","v":"  "}]
[]
["الحاسوب",null,null,null,null,null,null,{"$f":"NoToTxt(G37,\"علامة\",\" \")","v":"  "}]
[]
["الثقافة المالية",null,null,null,null,null,null,{"$f":"NoToTxt(G39,\"علامة\",\" \")","v":"  "}]
[]
["اللغة الفرنسية",null,null,null,null,null,null,{"$f":"NoToTxt(G41,\"علامة\",\" \")","v":"  "}]
[]
["الدين المسيحي",null,null,null,null,null,null,{"$f":"NoToTxt(G43,\"علامة\",\" \")","v":"  "}]
[]
[]
["معدل الطالب",null,null,null,"ملاحظات مربي الصف"]
[{"$f":"SUM(G19,G21,G23,G25,G27,G29)/6","v":0},null,{"$f":"IF(A47>=90,\"ممتاز ، مبارك لك هذا النجاح والتفوق الباهر\",IF(A47>=80,\"جيد جداً ، مبارك لك النجاح بإمكانك الوصول للتميز\",IF(A47>=70,\"جيد ، مبارك لك النجاح ، بالمثابرة والاجتهاد يمكن التقدم أكثر\",IF(A47>=60,\"متوسط ، مبارك لك النجاح ، لكن بحاجة للمتابعة والعناية والاهتمام لتحسين المستوى\",IF(A47>=50,\"مقبول ، مبارك لك النجاح ، بحاجة للكثير من الاهتمام ومتابعة الدروس للتقدم\",\"مقصر ، أمامك فرص أخرى لتعديل النتيجة من خلال المثابرة والجد والاجتهاد المستمر\")))))","v":"مقصر ، أمامك فرص أخرى لتعديل النتيجة من خلال المثابرة والجد والاجتهاد المستمر"}]
[]
[]
[]
["مربي الصف",null,null,null,"الخاتم الرسمي",null,null,"مدير المدرسة"]
[{"$f":"CONCATENATE('البيانات الاساسية'!K2)","v":"ثائر صابر احمد علي"},null,null,null,null,null,null,{"$f":"CONCATENATE('البيانات الاساسية'!J2)","v":"فخري العواد"}]

{"sheet":"SH3","index":2,"n_rows":96,"n_cols":54,"rows_kept":96,"cut":false,"hidden":false,"merged":[[101,10,102,10],[113,2,114,3],[97,5,98,5],[97,6,98,7],[97,8,98,8],[97,9,98,9],[101,5,102,5],[101,6,102,7],[101,8,102,8],[101,9,102,9],[97,10,98,10],[99,5,100,5],[99,6,100,7],[99,8,100,8],[99,9,100,9],[99,10,100,10],[93,5,94,5],[93,6,94,7],[93,8,94,8],[93,9,94,9],[93,10,94,10],[95,5,96,5],[95,6,96,7],[95,8,96,8],[95,9,96,9],[95,10,96,10],[89,5,90,5],[89,6,90,7],[89,8,90,8],[89,9,90,9],[89,10,90,10],[91,5,92,5],[91,6,92,7],[91,8,92,8],[91,9,92,9],[91,10,92,10],[85,5,86,5],[85,6,86,7],[85,8,86,8],[85,9,86,9],[85,10,86,10],[87,5,88,5],[87,6,88,7],[87,8,88,8],[87,9,88,9],[87,10,88,10],[81,10,82,10],[83,5,84,5],[83,6,84,7],[83,8,84,8],[83,9,84,9],[83,10,84,10],[71,3,72,6],[81,5,82,5],[81,6,82,7],[81,8,82,8],[81,9,82,9],[39,6,39,8],[40,6,41,9],[42,6,43,8],[24,5,25,7],[29,5,30,8],[31,5,32,8],[33,5,34,8],[35,5,36,8],[37,5,38,8],[18,5,19,8],[20,5,21,8],[22,5,23,6],[26,5,26,9],[28,5,28,6]]}
[]
[]
[null,null,null,null,null,null,null,null,null,null,null,null,null,null,null,null,null,null,null,null,null,null,null,null,null,null,null,null,null,null,null,null,null,null,null,null,null,null,null,null,null,null,null,null,null,null,null,null,null,null,null,null,null,{"$f":"SUM(K82,K84,K86,K88,K90,K92)/6","v":28.083333333333332}]
[]
[]
[]
[]
[]
[]
[]
[]
[null,null,null,"هاشم حسن هاشم حليمة"]
[]
[]
[]
[]
[]
[]
[null,null,null,null,null,"هاشم حسن هاشم حليمة"]
[]
[null,null,null,null,null,{"$f":"CONCATENATE('البيانات الاساسية'!AE3)","v":"الثالث   أ"}]
[]
[null,null,null,null,null,"أردني"]
[]
[null,null,null,null,null,""]
[]
[null,null,null,null,null,"العاصمة عمان 19 / 7/ 2011"]
[]
[null,null,null,null,null,""]
[null,null,null,null,null,{"$f":"CONCATENATE('البيانات الاساسية'!F2)","v":"المنارة"}]
[]
[null,null,null,null,null,{"$f":"CONCATENATE('البيانات الاساسية'!E2)","v":"محمد الشنقيطي الاساسية للبنين"}]
[]
[null,null,null,null,null,{"$f":"CONCATENATE('البيانات الاساسية'!F2)","v":"المنارة"}]
[]
[null,null,null,null,null,{"$f":"CONCATENATE('البيانات الاساسية'!B2)","v":"ماركا"}]
[]
[null,null,null,null,null,{"$f":"CONCATENATE('البيانات الاساسية'!D2)","v":"ماركا"}]
[]
[null,null,null,null,null,null,{"$f":"CONCATENATE('البيانات الاساسية'!G2)","v":"وزارة التربية والتعليم"}]
[null,null,null,null,null,null,{"$f":"CONCATENATE('البيانات الاساسية'!H2)","v":"3614615"}]
[]
[null,null,null,null,null,null,{"$f":"CONCATENATE('البيانات الاساسية'!I2)","v":"123456"}]
[]
[]
[]
[]
[]
[]
[]
[]
[]
[]
[]
[]
[]
[]
[]
[]
[]
[1,2,3,{"$f":"1+C61","v":4},{"$f":"1+D61","v":5},6,7,8,9,10,11,12,13]
[]
[]
[]
[]
[]
[]
[]
[]
[]
[]
[]
[]
[]
[]
[]
[]
[]
[]
[]
[]
[null,null,null,null,null,50,100,null,58,0,29]
[]
[null,null,null,null,null,50,100,null,55,0,27.5]
[]
[null,null,null,null,null,50,100,null,57,0,28.5]
[]
[null,null,null,null,null,50,100,null,56,0,28]
[]
[null,null,null,null,null,50,100,null,57,0,28.5]
[]
[null,null,null,null,null,50,100,null,54,0,27]
[]
[null,null,null,null,null,50,100,null,67,0,33.5]
[]
[null,null,null,null,null,50,100,null,62,0,31]

{"sheet":"جدول EMIS","index":3,"n_rows":171,"n_cols":72,"rows_kept":171,"cut":false,"hidden":false,"merged":[[97,66,97,71],[97,24,97,29],[97,30,97,35],[97,36,97,41],[97,42,97,47],[97,48,97,53],[97,6,97,11],[97,12,97,17],[97,18,97,23],[97,54,97,59],[97,60,97,65],[97,76,99,76],[97,73,99,73],[97,74,99,74],[97,75,99,75],[97,72,99,72]]}
[null,null,null,null,null,null,null,"التربية الإسلامية",null,null,"اللغة العربية",null,null,"اللغة الانجليزية",null,null,"الرياضيات",null,null,"التربية الاجتماعية و الوطنية",null,null,"العلوم",null,null,"التربية الفنية و الموسيقى و الأناشيد",null,null,"التربية الرياضية",null,null,"موسيقى و أناشيد",null,null,"التربية المهنية",null,null,"الحاسوب",null,null,"اللغة الفرنسية",null,null,"الدين المسيحي"]
[null,null,null,null,null,null,null,"الفصل الأول","الفصل الثاني","Average","الفصل الأول","الفصل الثاني","Average","الفصل الأول","الفصل الثاني","Average","الفصل الأول","الفصل الثاني","Average","الفصل الأول","الفصل الثاني","Average","الفصل الأول","الفصل الثاني","Average","الفصل الأول","الفصل الثاني","Average","الفصل الأول","الفصل الثاني","Average","الفصل الأول","الفصل الثاني","Average","الفصل الأول","الفصل الثاني","Average","الفصل الأول","الفصل الثاني","Average","الفصل الأول","الفصل الثاني","Average","الفصل الأول","الفصل الثاني","Average"]
[null,null,null,null,null,null,null,100,25,62.5,100,25,62.5,100,25,62.5,100,25,62.5,100,25,62.5,100,25,62.5,100,25,62.5,100,25,62.5,100,25,62.5,100,25,62.5,100,25,62.5,100,25,62.5,100,25,62.5]
[1,"احمد محمد سليم السقا","أردني","العاصمة عمان",27,3,2011,97,null,null,94,null,null,98,null,null,98,null,null,98,null,null,95,null,null,95,null,null,94,null,null,null,null,null,null,null,null,null,null,null,null,null,null,null,null,null,2]
[2,"احمد خلدون خالد القواسمة","أردني","العاصمة عمان",14,5,2011,82,null,null,71,null,null,86,null,null,76,null,null,88,null,null,63,null,null,87,null,null,89]
[3,"احمد يوسف محمد منلا","سوري","سوريا",4,9,2011,85,null,null,83,null,null,56,null,null,88,null,null,90,null,null,83,null,null,84,null,null,89,null,null,null,null,null,null,null,null,null,null,null,null,null,null,null,null,null,3]
[4,"اسامه بلال ذياب منصور","أردني","البلقاء",13,5,2011,87,null,null,72,null,null,87,null,null,73,null,null,90,null,null,84,null,null,88,null,null,86,null,null,null,null,null,null,null,null,null,null,null,null,null,null,null,null,null,3]
[5,"براء عمر محمود محمد","أردني","العاصمة عمان",20,12,2011,93,null,null,90,null,null,86,null,null,92,null,null,97,null,null,88,null,null,93,null,null,94,null,null,null,null,null,null,null,null,null,null,null,null,null,null,null,null,null,3]
[6,"بهاء الدين محمد ماجد الشحادة","أردني","العاصمة عمان",15,4,2011,95,null,null,87,null,null,90,null,null,74,null,null,97,null,null,88,null,null,93,null,null,93,null,null,null,null,null,null,null,null,null,null,null,null,null,null,null,null,null,4]
[7,"خالد احمد جمعة عوض الله","أردني","الامارات العربية",13,4,2011,98,null,null,93,null,null,93,null,null,96,null,null,99,null,null,99,null,null,95,null,null,96,null,null,null,null,null,null,null,null,null,null,null,null,null,null,null,null,null,5]
[8,"صهيب ابراهيم نبيل حليمه","أردني","العاصمة عمان",28,12,2011,52,null,null,55,null,null,55,null,null,52,null,null,57,null,null,52,null,null,70,null,null,63,null,null,null,null,null,null,null,null,null,null,null,null,null,null,null,null,null,15]
[9,"عبد الله ياسر علي ابو شما","أردني","البلقاء",11,4,2011,96,null,null,92,null,null,97,null,null,94,null,null,98,null,null,94,null,null,95,null,null,96,null,null,null,null,null,null,null,null,null,null,null,null,null,null,null,null,null,3]
[10,"عبد الله اياد جميل السيد احمد","أردني","العاصمة عمان",23,11,2011,94,null,null,93,null,null,97,null,null,96,null,null,95,null,null,93,null,null,94,null,null,94,null,null,null,null,null,null,null,null,null,null,null,null,null,null,null,null,null,3]
[11,"عمر باسل يوسف مجدلاويه","أردني","العاصمة عمان",7,6,2011,95,null,null,83,null,null,91,null,null,86,null,null,95,null,null,87,null,null,93,null,null,93,null,null,null,null,null,null,null,null,null,null,null,null,null,null,null,null,null,3]
[12,"عمرو اسامة عطية المغربي","أردني","العاصمة عمان",18,12,2011,91,null,null,65,null,null,72,null,null,74,null,null,91,null,null,81,null,null,89,null,null,89,null,null,null,null,null,null,null,null,null,null,null,null,null,null,null,null,null,3]
[13,"عيسى محمود جميل عليان","أردني","العاصمة عمان",30,4,2011,60,null,null,59,null,null,65,null,null,78,null,null,84,null,null,54,null,null,82,null,null,74,null,null,null,null,null,null,null,null,null,null,null,null,null,null,null,null,null,2]
[14,"محمد عامر ابراهيم الخضراوي","أردني","العاصمة عمان",5,2,2011,96,null,null,90,null,null,95,null,null,98,null,null,94,null,null,83,null,null,93,null,null,95,null,null,null,null,null,null,null,null,null,null,null,null,null,null,null,null,null,1]
[15,"مصطفى بدران محمد نبيل النتشة","أردني","العاصمة عمان",10,3,2011,89,null,null,79,null,null,89,null,null,71,null,null,83,null,null,68,null,null,84,null,null,87,null,null,null,null,null,null,null,null,null,null,null,null,null,null,null,null,null,3]
[16,"معتز عبدالله محمد ابورياله","أردني","العاصمة عمان",16,9,2011,95,null,null,90,null,null,97,null,null,85,null,null,94,null,null,88,null,null,91,null,null,93,null,null,null,null,null,null,null,null,null,null,null,null,null,null,null,null,null,2]
[17,"معتز عبدالله محمد الاصفر","أردني","العاصمة عمان",8,3,2011,98,null,null,95,null,null,99,null,null,96,null,null,98,null,null,92,null,null,97,null,null,95,null,null,null,null,null,null,null,null,null,null,null,null,null,null,null,null,null,2]
[18,"معتصم محمد راشد الحلمان","أردني","الزرقاء",13,7,2011,95,null,null,84,null,null,84,null,null,85,null,null,93,null,null,89,null,null,94,null,null,91,null,null,null,null,null,null,null,null,null,null,null,null,null,null,null,null,null,6]
[19,"هاشم حسن هاشم حليمة","أردني","العاصمة عمان",19,7,2011,58,null,null,55,null,null,57,null,null,56,null,null,57,null,null,54,null,null,67,null,null,62,null,null,null,null,null,null,null,null,null,null,null,null,null,null,null,null,null,1]
[]
[]
[]
[]
[]
[]
[]
[]
[]
[]
[]
[]
[]
[]
[]
[]
[]
[]
[]
[]
[]
[]
[]
[]
[]
[]
[]
[]
[]
[]
[]
[]
[]
[]
[]
[]
[]
[]
[]
[]
[]
[]
[]
[]
[]
[]
[]
[]
[]
[]
[]
[]
[]
[]
[]
[]
[]
[]
[]
[]
[]
[]
[]
[]
[]
[]
[]
[]
[]
[]
[]
[]
[]
[]
[]
[null,null,null,null,null,null,"التربية الإسلامية",null,null,null,null,null,"اللغة العربية",null,null,null,null,null,"انجليزية",null,null,null,null,null,"الرياضيات",null,null,null,null,null,"اجتماعيات",null,null,null,null,null,"علوم",null,null,null,null,null,"فنية وموسيقى",null,null,null,null,null,"رياضة",null,null,null,null,null,"تربية مهنية",null,null,null,null,null,"الحاسوب",null,null,null,null,null,"الثقافة المالية"]
[null,null,null,null,null,null,"الفصل الأول","الفصل الأول","الفصل الثاني","الفصل الثاني","Average","Average","الفصل الأول","الفصل الأول","الفصل الثاني","الفصل الثاني","Average","Average","الفصل الأول","الفصل الأول","الفصل الثاني","الفصل الثاني","Average","Average","الفصل الأول","الفصل الأول","الفصل الثاني","الفصل الثاني","Average","Average","الفصل الأول","الفصل الأول","الفصل الثاني","الفصل الثاني","Average","Average","الفصل الأول","الفصل الأول","الفصل الثاني","الفصل الثاني","Average","Average","الفصل الأول","الفصل الأول","الفصل الثاني","الفصل الثاني","Average","Average","الفصل الأول","الفصل الأول","الفصل الثاني","الفصل الثاني","Average","Average","الفصل الأول","الفصل الأول","الفصل الثاني","الفصل الثاني","Average","Average","الفصل الأول","الفصل الأول","الفصل الثاني","الفصل الثاني","Average","Average","الفصل الأول","الفصل الأول","الفصل الثاني","الفصل الثاني","Average","Average"]
[null,null,null,null,null,null,{"$f":"CONCATENATE(#REF!)","v":{"$error":"#REF!"}},"بالكلمات",{"$f":"CONCATENATE(#REF!)","v":{"$error":"#REF!"}},"بالكلمات",{"$f":"CONCATENATE(#REF!)","v":{"$error":"#REF!"}},"بالكلمات",{"$f":"CONCATENATE(#REF!)","v":{"$error":"#REF!"}},"بالكلمات",{"$f":"CONCATENATE(#REF!)","v":{"$error":"#REF!"}},"بالكلمات",{"$f":"CONCATENATE(#REF!)","v":{"$error":"#REF!"}},"بالكلمات",{"$f":"CONCATENATE(#REF!)","v":{"$error":"#REF!"}},"بالكلمات",{"$f":"CONCATENATE(#REF!)","v":{"$error":"#REF!"}},"بالكلمات",{"$f":"CONCATENATE(#REF!)","v":{"$error":"#REF!"}},"بالكلمات",{"$f":"CONCATENATE(#REF!)","v":{"$error":"#REF!"}},"بالكلمات",{"$f":"CONCATENATE(#REF!)","v":{"$error":"#REF!"}},"بالكلمات",{"$f":"CONCATENATE(#REF!)","v":{"$error":"#REF!"}},"بالكلمات",{"$f":"CONCATENATE(#REF!)","v":{"$error":"#REF!"}},"بالكلمات",{"$f":"CONCATENATE(#REF!)","v":{"$error":"#REF!"}},"بالكلمات",{"$f":"CONCATENATE(#REF!)","v":{"$error":"#REF!"}},"بالكلمات",{"$f":"CONCATENATE(#REF!)","v":{"$error":"#REF!"}},"بالكلمات",{"$f":"CONCATENATE(#REF!)","v":{"$error":"#REF!"}},"بالكلمات",{"$f":"CONCATENATE(#REF!)","v":{"$error":"#REF!"}},"بالكلمات",{"$f":"CONCATENATE(#REF!)","v":{"$error":"#REF!"}},"بالكلمات",{"$f":"CONCATENATE(#REF!)","v":{"$error":"#REF!"}},"بالكلمات",{"$f":"CONCATENATE(#REF!)","v":{"$error":"#REF!"}},"بالكلمات",{"$f":"CONCATENATE(#REF!)","v":{"$error":"#REF!"}},"بالكلمات",{"$f":"CONCATENATE(#REF!)","v":{"$error":"#REF!"}},"بالكلمات",{"$f":"CONCATENATE(#REF!)","v":{"$error":"#REF!"}},"بالكلمات",{"$f":"CONCATENATE(#REF!)","v":{"$error":"#REF!"}},"بالكلمات",{"$f":"CONCATENATE(#REF!)","v":{"$error":"#REF!"}},"بالكلمات",{"$f":"CONCATENATE(#REF!)","v":{"$error":"#REF!"}},"بالكلمات",{"$f":"CONCATENATE(#REF!)","v":{"$error":"#REF!"}},"بالكلمات",{"$f":"CONCATENATE(#REF!)","v":{"$error":"#REF!"}},"بالكلمات",{"$f":"CONCATENATE(#REF!)","v":{"$error":"#REF!"}},"بالكلمات",{"$f":"CONCATENATE(#REF!)","v":{"$error":"#REF!"}},"بالكلمات",{"$f":"CONCATENATE(#REF!)","v":{"$error":"#REF!"}},"بالكلمات",{"$f":"CONCATENATE(#REF!)","v":{"$error":"#REF!"}},"بالكلمات"]
[{"$f":"IF(A4=\"\",\"\",A4)","v":1},{"$f":"IF(B4=\"\",\"\",B4)","v":"احمد محمد سليم السقا"},{"$f":"IF(C4=\"\",\"\",C4)","v":"أردني"},{"$f":"CONCATENATE(D4,\" \",E4,\" / \",F4,\"/ \",G4)","v":"العاصمة عمان 27 / 3/ 2011"}]
[{"$f":"IF(A5=\"\",\"\",A5)","v":2},{"$f":"IF(B5=\"\",\"\",B5)","v":"احمد خلدون خالد القواسمة"},{"$f":"IF(C5=\"\",\"\",C5)","v":"أردني"},{"$f":"CONCATENATE(D5,\" \",E5,\" / \",F5,\"/ \",G5)","v":"العاصمة عمان 14 / 5/ 2011"}]
[3,"احمد يوسف محمد منلا","سوري","سوريا 4 / 9/ 2011"]
[4,"اسامه بلال ذياب منصور","أردني","البلقاء 13 / 5/ 2011"]
[5,"براء عمر محمود محمد","أردني","العاصمة عمان 20 / 12/ 2011"]
[6,"بهاء الدين محمد ماجد الشحادة","أردني","العاصمة عمان 15 / 4/ 2011"]
[7,"خالد احمد جمعة عوض الله","أردني","الامارات العربية 13 / 4/ 2011"]
[8,"صهيب ابراهيم نبيل حليمه","أردني","العاصمة عمان 28 / 12/ 2011"]
[9,"عبد الله ياسر علي ابو شما","أردني","البلقاء 11 / 4/ 2011"]
[10,"عبد الله اياد جميل السيد احمد","أردني","العاصمة عمان 23 / 11/ 2011"]
[11,"عمر باسل يوسف مجدلاويه","أردني","العاصمة عمان 7 / 6/ 2011"]
[12,"عمرو اسامة عطية المغربي","أردني","العاصمة عمان 18 / 12/ 2011"]
[13,"عيسى محمود جميل عليان","أردني","العاصمة عمان 30 / 4/ 2011"]
[14,"محمد عامر ابراهيم الخضراوي","أردني","العاصمة عمان 5 / 2/ 2011"]
[15,"مصطفى بدران محمد نبيل النتشة","أردني","العاصمة عمان 10 / 3/ 2011"]
[16,"معتز عبدالله محمد ابورياله","أردني","العاصمة عمان 16 / 9/ 2011"]
[17,"معتز عبدالله محمد الاصفر","أردني","العاصمة عمان 8 / 3/ 2011"]
[18,"معتصم محمد راشد الحلمان","أردني","الزرقاء 13 / 7/ 2011"]
[19,"هاشم حسن هاشم حليمة","أردني","العاصمة عمان 19 / 7/ 2011"]
["","","","  / / "]
["","","","  / / "]
["","","","  / / "]
["","","","  / / "]
["","","","  / / "]
["","","","  / / "]
["","","","  / / "]
["","","","  / / "]
["","","","  / / "]
["","","","  / / "]
["","","","  / / "]
["","","","  / / "]
["","","","  / / "]
["","","","  / / "]
["","","","  / / "]
["","","","  / / "]
["","","","  / / "]
["","","","  / / "]
["","","","  / / "]
["","","","  / / "]
["","","","  / / "]
["","","","  / / "]
["","","","  / / "]
["","","","  / / "]
["","","","  / / "]
["","","","  / / "]
["","","","  / / "]
["","","","  / / "]
["","","","  / / "]
["","","","  / / "]
["","","","  / / "]
["","","","  / / "]
["","","","  / / "]
["","","","  / / "]
["","","","  / / "]
["","","","  / / "]
["","","","  / / "]
["","","","  / / "]
["","","","  / / "]
["","","","  / / "]
["","","","  / / "]
["","","","  / / "]
["","","","  / / "]
["","","","  / / "]
["","","","  / / "]
["","",{"$f":"IF(C68=\"\",\"\",C68)","v":""},"  / / "]
[{"$f":"IF(A69=\"\",\"\",A69)","v":""},{"$f":"IF(B69=\"\",\"\",B69)","v":""},"",{"$f":"CONCATENATE(D69,\" \",E69,\" / \",F69,\"/ \",G69)","v":"  / / "}]
["","","","  / / "]
["","","","  / / "]
["","","","  / / "]
["","","","  / / "]
["","","","  / / "]